{"text_format":"3","workbook":"xlsx","n_sheets":2,"sheets":["Wartungsauftrag","Quelle"],"not_rendered":{"images":1,"defined_names":2},"read":"whole","date_system":"1900"}

{"sheet":"Wartungsauftrag","index":0,"n_rows":46,"n_cols":9,"rows_kept":46,"merged":[[0,0,7,2],[0,4,0,8],[1,6,1,8],[2,6,2,8],[3,6,3,8],[4,6,4,8],[5,6,5,8],[6,6,6,8],[7,6,7,8],[9,2,9,6],[10,0,10,8],[12,0,12,2],[13,0,13,2],[18,0,18,8],[20,2,20,4],[21,2,21,4],[22,2,22,4],[26,0,26,8],[28,0,28,2],[29,0,29,2],[30,0,30,2],[31,0,31,2],[33,0,33,2],[34,0,34,2],[45,0,45,8]]}
["Warum ein Leasing?\nBinden Sie Ihr Kapital nicht an Geräte, die schnell an Wert verlieren. Sichern Sie stattdessen Ihre Liquidität und leasen Sie Ihre Geräte.\n\nIhre Vorteile \n> Hilft Liquidität zu erhalten: Leasing schon das Eigenkapital und stärkt die Bonität gegenüber der Bank.\n> Gibt Planungssicherheit: Konstante Leasing-Raten sind einfach kalkulierbar.\n> Ermöglicht grössere Investitionen zu einem früheren Zeitpunkt: Kleine Raten ersetzen hohe Kaufpreise.\n\nBenötigen Sie weitere Informationen?\nKontaktieren Sie uns per Mail an info@ehs.ch oder unter Telefon 041 440 84 40.\n",{"$nulls":3},"Ihre Angaben"]
[{"$nulls":4},"Kundennummer"]
[{"$nulls":4},"Firmenname"]
[{"$nulls":4},"Kontaktperson"]
[{"$nulls":4},"Adresse"]
[{"$nulls":4},"PLZ / Ort"]
[{"$nulls":4},"Telefon-Nr."]
[{"$nulls":4},"E-Mail"]
[{"$nulls":4},"Preis",null,"Preis",null,{"$f":"I17+I25+#REF!+#REF!+#REF!","v":{"$error":"#DIV/0!"}}]
[]
["Monatliche Mehrkosten Blindenergie"]
["Ursache",{"$nulls":3},"Kosten",null,"Dauer (Anzahl Monate)",null,"Total pro Monat in CHF"]
["Blindenergie kVarh Hochtarif",{"$nulls":7},{"$f":"E13/G13","v":{"$error":"#DIV/0!"}}]
["Blindenergie kVarh Niedertarif",{"$nulls":7},{"$f":"E14/G14","v":{"$error":"#DIV/0!"}}]
[null,null,"Einlagerungskosten",null,"Preis",null,"Preis",null,"Total"]
[]
[{"$nulls":6},"Total",null,{"$f":"SUM(I13:I14)","v":{"$error":"#DIV/0!"}}]
[]
["Invesition"]
["Anzahl",null,"Gerät",{"$nulls":3},"Kosten",null,"Total in CHF"]
[{"$nulls":8},{"$f":"A21*G21","v":0}]
[{"$nulls":8},{"$f":"A22*G22","v":0}]
[{"$nulls":8},{"$f":"A23*G23","v":0}]
[]
[{"$nulls":6},"Total",null,{"$f":"SUM(I21:I23)","v":0}]
[]
["Leasingkosten"]
["Beschreibung",{"$nulls":3},"Dauer",null,"Dauer",null,"Total in CHF"]
["Monatliche Kosten Leasing",{"$nulls":3},"24 Monate",{"$f":"IF(G25>30000,Quelle!C2,IF(G25>10000,Quelle!B2,IF(G25>5000,Quelle!A2,Quelle!#REF!)))","v":4.5},"24 Monate",{"$f":"IF(I25>30000,Quelle!E2,IF(I25>10000,Quelle!D2,IF(I25>5000,Quelle!C2,Quelle!B2)))","v":4.59},{"$f":"I25*H29/100","v":0}]
["Monatliche Kosten Leasing",{"$nulls":3},"36 Monate",{"$f":"IF(G25>30000,Quelle!C3,IF(G25>10000,Quelle!B3,IF(G25>5000,Quelle!A3,Quelle!#REF!)))","v":3.15},"36 Monate",{"$f":"IF(I25>30000,Quelle!E3,IF(I25>10000,Quelle!D3,IF(I25>5000,Quelle!C3,Quelle!B3)))","v":3.3},{"$f":"I25*H30/100","v":0}]
["Monatliche Kosten Leasing",{"$nulls":3},"48 Monate",{"$f":"IF(G25>30000,Quelle!C4,IF(G25>10000,Quelle!B4,IF(G25>5000,Quelle!A4,Quelle!#REF!)))","v":2.48},"48 Monate",{"$f":"IF(I25>30000,Quelle!E4,IF(I25>10000,Quelle!D4,IF(I25>5000,Quelle!C4,Quelle!B4)))","v":2.67},{"$f":"I25*H31/100","v":0}]
["Monatliche Kosten Leasing",{"$nulls":3},"60 Monate",{"$f":"IF(G25>30000,Quelle!C5,IF(G25>10000,Quelle!B5,IF(G25>5000,Quelle!A5,Quelle!#REF!)))","v":2.09},"60 Monate",{"$f":"IF(I25>30000,Quelle!E5,IF(I25>10000,Quelle!D5,IF(I25>5000,Quelle!C5,Quelle!B5)))","v":0},{"$f":"I25*H32/100","v":0}]
[]
["Bearbeitungsgebühr zu Vetragsbeginn",{"$nulls":3},"einmalig",null,"einmalig",null,{"v":150,"d":"150.00"}]
["Abschlusszahlung des Restwertes von 3 %",{"$nulls":3},"einmalig",null,"einmalig",null,{"$f":"I25*3%","v":0}]
[null,null,"5. Zuschläge für Überstunden und Feiertagsarbeiten"]
[]
[null,null,"Als normale Arbeitszeiten gilt die Zeit zwischen 06.00 bis 20.00 Uhr. Folgende Zuschläge werden ausserhalb"]
[null,null,"der normalen Arbeitszeiten verrechnet."]
[{"$nulls":4},"Preis",null,"Preis"]
[null,null,"Montag bis Freitag: 20.00 bis 23.00",null,"+ 25%",null,"+ 25%"]
[null,null,"Jede weitere Stunde",null,"+ 50 %",null,"+ 50 %"]
[null,null,"Samstag: Von der ersten Stunde an",null,"+ 50 %",null,"+ 50 %"]
[null,null,"Sonntag und Feiertage: Von der ersten Stunde an",null,"+ 100%",null,"+ 100%"]
[]
["Alle angegebenen Preise sind Nettopreise und exkl. MWSt. Es gelten unsere \"Allgemeinen Liefer- und Verkaufsbedingungen\"."]

{"sheet":"Quelle","index":1,"n_rows":5,"n_cols":5,"rows_kept":5,"hidden":true}
["Laufzeit","1000-5000","50001-10000","10001-30000","30001-50000"]
["24 Monate",4.59,4.5,4.45,4.41]
["36 Monate",3.3,3.15,3.09,3.03]
["48 Monate",2.67,2.48,2.42,2.35]
["60 Monate",null,2.09,2.04,1.95]